fUSD/lending_fUSD_20260528
["ID","MTS","AMOUNT","RATE_DAILY","PERIOD"]
[423232843,1779964232000,-150.0,0.00013737,2]
[423232840,1779964232000,-150.0,0.00013708,2]
[423232845,1779964232000,-98448.24157045,0.00013784,2]
[423232821,1779964232000,-150.0,0.00013488,2]
[423232819,1779964232000,-150.0,0.00013488,2]
[423232817,1779964232000,-150.0,0.00013488,2]
[423232818,1779964232000,-150.0,0.00013488,2]
[423232822,1779964232000,-150.0,0.00013488,2]
[423232820,1779964232000,-150.0,0.00013488,2]
[423232823,1779964232000,-150.0,0.00013488,2]
[423232824,1779964232000,-150.0,0.00013488,2]
[423232829,1779964232000,-150.0,0.0001362,2]
[423232830,1779964232000,-2000.0,0.00013627,2]
[423232827,1779964232000,-2404.43,0.00013592,2]
[423232835,1779964232000,-382.58161921,0.00013698,2]
[423232828,1779964232000,-150.0,0.00013613,2]
[423232831,1779964232000,-180.55,0.00013645,2]
[423232833,1779964232000,-150.0,0.00013664,2]
[423232832,1779964232000,-150.0,0.00013654,2]
[423232825,1779964232000,-150.0,0.00013532,2]
[423232834,1779964232000,-2588.0,0.00013672,2]
[423232836,1779964232000,-165.17145713,0.00013698,2]
[423232837,1779964232000,-720.82,0.00013699,2]
[423232838,1779964232000,-166.66,0.00013699,2]
[423232841,1779964232000,-13222.0,0.00013734,2]
[423232839,1779964232000,-2500.0,0.00013699,2]
[423232842,1779964232000,-150.0,0.00013737,2]
[423232883,1779964232000,-21722.8,0.00014193,2]
[423232846,1779964232000,-314.73141115,0.00013784,2]
[423232847,1779964232000,-584.0,0.00013784,2]
[423232844,1779964232000,-150.0,0.00013752,2]
[423232881,1779964232000,-150.0,0.00014154,2]
[423232826,1779964232000,-150.0,0.00013576,2]
[423232874,1779964232000,-150.0,0.00014061,2]
[423232913,1779964232000,-300.0,0.00014561,2]
[423232911,1779964232000,-150.0,0.00014546,2]
[423232922,1779964232000,-500.0,0.000146,5]
[423232914,1779964232000,-300.0,0.00014561,2]
[423232916,1779964232000,-5000.0,0.00014569,2]
[423232920,1779964232000,-187.93214967,0.00014569,2]
[423232921,1779964232000,-150.0,0.0001459,2]
[423232918,1779964232000,-5000.0,0.00014569,2]
[423232919,1779964232000,-5000.0,0.00014569,2]
[423232917,1779964232000,-5000.0,0.00014569,2]
[423232924,1779964232000,-150.0,0.00014612,2]
[423232923,1779964232000,-255.0,0.00014606,2]
[423232925,1779964232000,-150.0,0.00014612,2]
[423232926,1779964232000,-150.0,0.00014612,2]
[423232927,1779964232000,-150.0,0.00014634,2]
[423232928,1779964232000,-150.0,0.00014653,2]
[423232932,1779964232000,-25000.0,0.00014724,3]
[423232930,1779964232000,-500.0,0.000147,5]
[423232929,1779964232000,-150.0,0.00014678,2]
[423232933,1779964232000,-25000.0,0.00014733,3]
[423232931,1779964232000,-150.0,0.00014722,2]
[423232934,1779964232000,-150.0,0.00014737,2]
[423232936,1779964232000,-25000.0,0.00014742,3]
[423232935,1779964232000,-150.0,0.00014737,2]
[423232937,1779964232000,-25000.0,0.0001475,3]
[423232938,1779964232000,-18042.68358578,0.00014759,3]
[423232876,1779964232000,-150.0,0.00014105,2]
[423232912,1779964232000,-1680.0,0.0001456,2]
[423232910,1779964232000,-420.0,0.00014513,2]
[423232915,1779964232000,-5024.33728789,0.00014569,2]
[423232907,1779964232000,-150.0,0.00014487,2]
[423232878,1779964232000,-150.0,0.00014112,2]
[423232875,1779964232000,-1100.0,0.000141,5]
[423232882,1779964232000,-150.0,0.00014193,2]
[423232877,1779964232000,-166.66,0.0001411,2]
[423232884,1779964232000,-1700.0,0.000142,5]
[423232885,1779964232000,-7275.38,0.00014203,2]
[423232908,1779964232000,-500.0,0.000145,5]
[423232888,1779964232000,-150.0,0.00014237,2]
[423232889,1779964232000,-150.0,0.00014237,2]
[423232886,1779964232000,-150.0,0.00014237,2]
[423232891,1779964232000,-166.66,0.00014247,2]
[423232894,1779964232000,-2300.0,0.000143,5]
[423232890,1779964232000,-150.0,0.00014237,2]
[423232895,1779964232000,-150.0,0.0001432,2]
[423232887,1779964232000,-150.0,0.00014237,2]
[423232896,1779964232000,-150.0,0.00014325,2]
[423232903,1779964232000,-150.0,0.00014457,2]
[423232892,1779964232000,-150.0,0.00014281,2]
[423232901,1779964232000,-150.0,0.00014413,2]
[423232900,1779964232000,-2900.0,0.000144,5]
[423232898,1779964232000,-150.0,0.00014369,2]
[423232906,1779964232000,-150.0,0.00014487,2]
[423232902,1779964232000,-5000.0,0.00014457,2]
[423232905,1779964232000,-150.0,0.00014487,2]
[423232899,1779964232000,-166.66,0.00014384,2]
[423232909,1779964232000,-150.0,0.00014501,2]
[423232897,1779964232000,-150.0,0.00014362,2]
[423232893,1779964232000,-19621.92,0.00014291,2]
[423232904,1779964232000,-11343.1518,0.00014469,2]
[423232956,1779964233000,-150.0,0.00014898,2]
[423232947,1779964233000,-1613.83204798,0.00014829,2]
[423232952,1779964233000,-150.0,0.00014861,2]
[423232957,1779964233000,-890.19583882,0.000149,2]
[423232951,1779964233000,-1613.83204798,0.00014857,2]
[423232949,1779964233000,-154.83,0.00014852,2]
[423232948,1779964233000,-1613.83204798,0.00014843,2]
[423232943,1779964233000,-500.0,0.000148,5]
[423232946,1779964233000,-150.0,0.0001482,2]
[423232945,1779964233000,-1613.83204798,0.00014814,2]
[423232939,1779964233000,-6957.31641422,0.00014759,3]
[423232944,1779964233000,-150.0,0.0001481,2]
[423232940,1779964233000,-150.0,0.00014766,2]
[423232942,1779964233000,-1613.83204802,0.000148,2]
[423232941,1779964233000,-25000.0,0.00014768,3]
[423232954,1779964233000,-1613.83204798,0.00014886,2]
[423232958,1779964233000,-4109.80416118,0.000149,2]
[423232955,1779964233000,-2500.0,0.0001489,2]
[423232950,1779964233000,-150.0,0.00014854,2]
[423232960,1779964233000,-922.280983,0.000149,2]
[423232953,1779964233000,-1613.83204798,0.00014871,2]
[423232976,1779964233000,-1216.57072602,0.0001499,2]
[423232977,1779964233000,-303.8818997,0.0001499,2]
[423232975,1779964233000,-13759.25646933,0.0001499,2]
[423232974,1779964233000,-222.26668531,0.00014986,2]
[423232972,1779964233000,-221.84294858,0.00014986,2]
[423232970,1779964233000,-150.0,0.00014986,2]
[423232969,1779964233000,-233.44353509,0.00014986,2]
[423232971,1779964233000,-293.68053698,0.00014986,2]
[423232973,1779964233000,-153.62961216,0.00014986,2]
[423232966,1779964233000,-248.12491381,0.0001497,2]
[423232968,1779964233000,-151.80616668,0.00014986,2]
[423232964,1779964233000,-150.0,0.00014925,2]
[423232962,1779964233000,-211.92418467,0.000149,2]
[423232965,1779964233000,-150.0,0.00014942,2]
[423232959,1779964233000,-1246.0,0.000149,5]
[423232961,1779964233000,-735.74461961,0.000149,2]
[423232967,1779964233000,-155.83277478,0.00014986,2]
[423232963,1779964233000,-1401.90786331,0.000149,2]
[423233039,1779964238000,-500.0,0.00014999,2]
[423233021,1779964238000,-3957.0,0.0001499,2]
[423233034,1779964238000,-2486.09090495,0.0001499,2]
[423233036,1779964238000,-500.0,0.00014999,2]
[423233038,1779964238000,-500.0,0.00014999,2]
[423233043,1779964238000,-500.0,0.00014999,2]
[423233035,1779964238000,-176.46448349,0.0001499,2]
[423233037,1779964238000,-500.0,0.00014999,2]
[423233049,1779964238000,-273.05334531,0.00015,2]
[423233041,1779964238000,-500.0,0.00014999,2]
[423233042,1779964238000,-500.0,0.00014999,2]
[423233045,1779964238000,-500.0,0.00014999,2]
[423233046,1779964238000,-500.0,0.00014999,2]
[423233047,1779964238000,-500.0,0.00014999,2]
[423233044,1779964238000,-500.0,0.00014999,2]
[423233048,1779964238000,-1151.68181457,0.00015,2]
[423233040,1779964238000,-500.0,0.00014999,2]
[423233077,1779964242000,-1604018.58715642,0.00015,2]
[423233056,1779964242000,-485.39,0.000138,2]
[423233057,1779964242000,-8509097.99299696,0.00015,2]
[423233058,1779964242000,-39813.68421793,0.00015,2]
[423233059,1779964242000,-40974.09956186,0.00015,2]
[423233061,1779964242000,-20555.41243639,0.00015,2]
[423233079,1779964242000,-463.1837051,0.00015,2]
[423233062,1779964242000,-1362.87164236,0.00015,2]
[423233083,1779964242000,-2868.59911662,0.00015,2]
[423233089,1779964242000,-2565.98624479,0.00015,2]
[423233090,1779964242000,-458.87313864,0.00015,2]
[423233085,1779964242000,-2109.3632371,0.00015,2]
[423233081,1779964242000,-792.10950028,0.00015,2]
[423233087,1779964242000,-1000.0,0.00015,2]
[423233086,1779964242000,-362.30301409,0.00015,2]
[423233084,1779964242000,-8925.43284292,0.00015,2]
[423233116,1779964243000,-1121.38980766,0.00015,2]
[423233121,1779964246000,-2722.59864557,0.00015,2]
[423233120,1779964246000,-3574.31836567,0.00015,2]
[423233119,1779964246000,-325.90359639,0.00015,2]
[423233142,1779964250000,1429.0,0.00028082,120]
[423233143,1779964523000,174.85,0.00010596,2]
[423233144,1779964676000,-1086.77471866,0.0001324,2]
[423233145,1779964791000,-4813.86,0.00013106,2]
[423233146,1779964873000,373.0,0.00028082,120]
[423233147,1779964938000,-1758.7,0.00012887,2]
[423233148,1779964991000,-182.32,0.00012822,2]
[423233149,1779965045000,-200.0,0.00012914,2]
[423233150,1779965098000,-365.32,0.0001286,2]
[423233151,1779965132000,154.31921562,0.00011,3]
[423233152,1779965151000,-1200.0,0.00012975,2]
[423233154,1779965205000,-4304.1220983,0.00012976,2]
[423233155,1779965225000,-5280.62205655,0.00012976,2]
[423233156,1779965245000,-2393.94011366,0.00012976,2]
[423233157,1779965246000,-572.40805225,0.00012976,2]
[423233159,1779965351000,-21.12214108,0.00012976,2]
[423233158,1779965351000,-185.98,0.00012718,2]
[423233166,1779965431000,-87.14553816,0.00012976,2]
[423233165,1779965431000,-160.3,0.00012676,2]
[423233180,1779965432000,-150.0,0.00013488,2]
[423233184,1779965432000,-150.0,0.00013571,2]
[423233179,1779965432000,-150.0,0.00013488,2]
[423233177,1779965432000,-150.0,0.00013488,2]
[423233178,1779965432000,-150.0,0.00013488,2]
[423233176,1779965432000,-150.0,0.00013488,2]
[423233173,1779965432000,-150.0,0.00013488,2]
[423233175,1779965432000,-150.0,0.00013488,2]
[423233172,1779965432000,-1200.0,0.00013487,2]
[423233171,1779965432000,-300.0,0.00013487,2]
[423233170,1779965432000,-969.25628075,0.00013434,2]
[423233169,1779965432000,-913.22528134,0.0001324,2]
[423233168,1779965432000,-365.32,0.00013181,2]
[423233167,1779965432000,-189.74671734,0.00013081,2]
[423233182,1779965432000,-365.32,0.00013503,2]
[423233174,1779965432000,-150.0,0.00013488,2]
[423233185,1779965432000,-1535.06015563,0.00013584,2]
[423233181,1779965432000,-159.68,0.000135,2]
[423233197,1779965432000,-703115.90815392,0.00013684,2]
[423233183,1779965432000,-150.0,0.00013529,2]
[423233204,1779965432000,-304.13666743,0.00013684,2]
[423233201,1779965432000,-29359.56715607,0.00013684,2]
[423233202,1779965432000,-57370.10941277,0.00013684,2]
[423233199,1779965432000,-80659.24833066,0.00013684,2]
[423233195,1779965432000,-220.60452267,0.00013683,2]
[423233194,1779965432000,-500.0,0.00013683,2]
[423233196,1779965432000,-489.56690414,0.00013683,2]
[423233193,1779965432000,-615.98404652,0.00013683,2]
[423233192,1779965432000,-150.0,0.00013683,2]
[423233190,1779965432000,-242.2493141,0.00013674,2]
[423233188,1779965432000,-150.0,0.00013613,2]
[423233189,1779965432000,-150.0,0.00013654,2]
[423233186,1779965432000,-150.0,0.00013595,2]
[423233187,1779965432000,-600.0,0.000136,4]
[423233191,1779965432000,-245.56532551,0.00013682,2]
[423233235,1779965438000,-500.0,0.00013784,2]
[423233245,1779965438000,-500.0,0.00013784,2]
[423233234,1779965438000,-472.92193008,0.00013784,2]
[423233233,1779965438000,-500.0,0.00013784,2]
[423233225,1779965438000,-150.0,0.00013702,2]
[423233228,1779965438000,-499.0,0.00013753,2]
[423233227,1779965438000,-150.0,0.00013737,2]
[423233236,1779965438000,-500.0,0.00013784,2]
[423233226,1779965438000,-150.0,0.00013737,2]
[423233238,1779965438000,-544.38223571,0.00013784,2]
[423233256,1779965438000,-500.0,0.00013784,2]
[423233242,1779965438000,-259.84867957,0.00013784,2]
[423233241,1779965438000,-500.0,0.00013784,2]
[423233244,1779965438000,-151.70135183,0.00013784,2]
[423233243,1779965438000,-500.0,0.00013784,2]
[423233239,1779965438000,-500.0,0.00013784,2]
[423233240,1779965438000,-500.0,0.00013784,2]
[423233255,1779965438000,-500.0,0.00013784,2]
[423233231,1779965438000,-150.0,0.00013779,2]
[423233247,1779965438000,-500.0,0.00013784,2]
[423233237,1779965438000,-500.0,0.00013784,2]
[423233230,1779965438000,-242.2493141,0.00013774,2]
[423233215,1779965438000,-150.0,0.00013696,2]
[423233224,1779965438000,-150.0,0.00013702,2]
[423233207,1779965438000,-629191.03027915,0.00013684,2]
[423233206,1779965438000,-1617313.4461,0.00013584,2]
[423233208,1779965438000,-10067.4387,0.00013684,2]
[423233210,1779965438000,-6810.8903,0.00013684,2]
[423233220,1779965438000,-473.68630441,0.000137,2]
[423233209,1779965438000,-5000.0,0.00013684,2]
[423233211,1779965438000,-2500.0,0.00013684,2]
[423233212,1779965438000,-10809.90139416,0.00013687,2]
[423233218,1779965438000,-2500.0,0.00013699,2]
[423233217,1779965438000,-200.0,0.00013699,2]
[423233213,1779965438000,-254.52951594,0.00013687,2]
[423233214,1779965438000,-5184.49839958,0.00013687,2]
[423233252,1779965438000,-500.0,0.00013784,2]
[423233216,1779965438000,-166.66,0.00013699,2]
[423233219,1779965438000,-500.0,0.00013699,2]
[423233222,1779965438000,-163.41,0.000137,2]
[423233221,1779965438000,-154.66134378,0.000137,2]
[423233223,1779965438000,-1200.0,0.000137,5]
[423233232,1779965438000,-576.24094222,0.00013783,2]
[423233229,1779965438000,-1535.06015558,0.00013772,2]
[423233248,1779965438000,-500.0,0.00013784,2]
[423233246,1779965438000,-500.0,0.00013784,2]
[423233253,1779965438000,-500.0,0.00013784,2]
[423233276,1779965438000,-500.0,0.00013784,2]
[423233275,1779965438000,-500.0,0.00013784,2]
[423233278,1779965438000,-500.0,0.00013784,2]
[423233281,1779965438000,-500.0,0.00013784,2]
[423233280,1779965438000,-500.0,0.00013784,2]
[423233291,1779965438000,-500.0,0.00013784,2]
[423233292,1779965438000,-500.0,0.00013784,2]
[423233284,1779965438000,-500.0,0.00013784,2]
[423233285,1779965438000,-500.0,0.00013784,2]
[423233283,1779965438000,-500.0,0.00013784,2]
[423233251,1779965438000,-500.0,0.00013784,2]
[423233282,1779965438000,-500.0,0.00013784,2]
[423233289,1779965438000,-500.0,0.00013784,2]
[423233288,1779965438000,-500.0,0.00013784,2]
[423233290,1779965438000,-500.0,0.00013784,2]
[423233287,1779965438000,-500.0,0.00013784,2]
[423233293,1779965438000,-500.0,0.00013784,2]
[423233294,1779965438000,-626.32,0.00013784,2]
[423233295,1779965438000,-500.0,0.00013784,2]
[423233296,1779965438000,-500.0,0.00013784,2]
[423233297,1779965438000,-150.0,0.00013784,2]
[423233277,1779965438000,-500.0,0.00013784,2]
[423233273,1779965438000,-500.0,0.00013784,2]
[423233286,1779965438000,-500.0,0.00013784,2]
[423233274,1779965438000,-500.0,0.00013784,2]
[423233271,1779965438000,-500.0,0.00013784,2]
[423233254,1779965438000,-500.0,0.00013784,2]
[423233250,1779965438000,-500.0,0.00013784,2]
[423233249,1779965438000,-500.0,0.00013784,2]
[423233258,1779965438000,-500.0,0.00013784,2]
[423233257,1779965438000,-245.97684644,0.00013784,2]
[423233268,1779965438000,-500.0,0.00013784,2]
[423233260,1779965438000,-500.0,0.00013784,2]
[423233265,1779965438000,-500.0,0.00013784,2]
[423233266,1779965438000,-500.0,0.00013784,2]
[423233259,1779965438000,-500.0,0.00013784,2]
[423233262,1779965438000,-500.0,0.00013784,2]
[423233263,1779965438000,-500.0,0.00013784,2]
[423233267,1779965438000,-609.84,0.00013784,2]
[423233261,1779965438000,-500.0,0.00013784,2]
[423233269,1779965438000,-500.0,0.00013784,2]
[423233270,1779965438000,-500.0,0.00013784,2]
[423233272,1779965438000,-500.0,0.00013784,2]
[423233264,1779965438000,-500.0,0.00013784,2]
[423233279,1779965438000,-500.0,0.00013784,2]
[423233334,1779965439000,-5184.49839955,0.00014091,2]
[423233335,1779965439000,-500.0,0.00014099,2]
[423233337,1779965439000,-500.0,0.00014099,2]
[423233333,1779965439000,-10809.9013941,0.00014091,2]
[423233336,1779965439000,-500.0,0.00014099,2]
[423233329,1779965439000,-150.0,0.00014023,2]
[423233331,1779965439000,-150.0,0.0001407,2]
[423233330,1779965439000,-150.0,0.00014029,2]
[423233320,1779965439000,-150.0,0.00013946,2]
[423233338,1779965439000,-500.0,0.00014099,2]
[423233332,1779965439000,-150.0,0.00014087,2]
[423233339,1779965439000,-500.0,0.00014099,2]
[423233350,1779965439000,-10809.9013941,0.00014226,2]
[423233340,1779965439000,-500.0,0.00014099,2]
[423233351,1779965439000,-5184.49839955,0.00014226,2]
[423233343,1779965439000,-150.0,0.00014112,2]
[423233342,1779965439000,-166.66,0.0001411,2]
[423233347,1779965439000,-1535.06015558,0.00014148,2]
[423233349,1779965439000,-150.0,0.00014195,2]
[423233345,1779965439000,-150.0,0.0001413,2]
[423233346,1779965439000,-365.32,0.00014146,2]
[423233348,1779965439000,-150.0,0.00014154,2]
[423233344,1779965439000,-150.0,0.0001413,2]
[423233321,1779965439000,-10809.9013941,0.00013957,2]
[423233364,1779965439000,-150.0,0.00014344,2]
[423233341,1779965439000,-473.68630438,0.000141,2]
[423233325,1779965439000,-150.0,0.00013987,2]
[423233322,1779965439000,-5184.49839955,0.00013957,2]
[423233327,1779965439000,-150.0,0.00013987,2]
[423233363,1779965439000,-150.0,0.00014344,2]
[423233303,1779965439000,-10809.9013941,0.00013822,2]
[423233298,1779965439000,-150.0,0.00013787,2]
[423233300,1779965439000,-485.4,0.000138,2]
[423233302,1779965439000,-150.0,0.00013821,2]
[423233299,1779965439000,-1800.0,0.000138,5]
[423233301,1779965439000,-150.0,0.00013809,2]
[423233305,1779965439000,-365.32,0.00013824,2]
[423233304,1779965439000,-5184.49839955,0.00013822,2]
[423233315,1779965439000,-1544.0,0.00013932,2]
[423233306,1779965439000,-166.66,0.00013836,2]
[423233308,1779965439000,-473.68630438,0.000139,2]
[423233324,1779965439000,-166.66,0.00013973,2]
[423233307,1779965439000,-150.0,0.00013862,2]
[423233313,1779965439000,-150.0,0.00013916,2]
[423233310,1779965439000,-215.50460005,0.00013901,2]
[423233311,1779965439000,-150.0,0.00013904,2]
[423233312,1779965439000,-150.0,0.00013916,2]
[423233314,1779965439000,-1544.0,0.00013932,2]
[423233317,1779965439000,-1544.0,0.00013932,2]
[423233316,1779965439000,-1544.0,0.00013932,2]
[423233319,1779965439000,-1544.0,0.00013932,2]
[423233318,1779965439000,-1544.0,0.00013932,2]
[423233326,1779965439000,-150.0,0.00013987,2]
[423233323,1779965439000,-1535.06015558,0.0001396,2]
[423233328,1779965439000,-250.0,0.00014,2]
[423233309,1779965439000,-2400.0,0.000139,5]
[423233353,1779965439000,-150.0,0.00014237,2]
[423233391,1779965439000,-150.0,0.00014687,2]
[423233354,1779965439000,-150.0,0.00014237,2]
[423233385,1779965439000,-150.0,0.00014612,2]
[423233390,1779965439000,-150.0,0.00014665,2]
[423233388,1779965439000,-5184.49839955,0.0001463,2]
[423233392,1779965439000,-150.0,0.00014695,2]
[423233389,1779965439000,-150.0,0.00014653,2]
[423233393,1779965439000,-25000.0,0.00014698,3]
[423233397,1779965439000,-25000.0,0.00014715,3]
[423233395,1779965439000,-600.0,0.000147,5]
[423233394,1779965439000,-473.68630438,0.000147,2]
[423233396,1779965439000,-25000.0,0.00014706,3]
[423233398,1779965439000,-2000.0,0.00014733,2]
[423233400,1779965439000,-150.0,0.00014737,2]
[423233404,1779965439000,-5184.49839955,0.00014765,2]
[423233403,1779965439000,-10809.9013941,0.00014765,2]
[423233402,1779965439000,-965.33,0.00014763,2]
[423233352,1779965439000,-150.0,0.00014237,2]
[423233399,1779965439000,-316.79,0.00014733,2]
[423233405,1779965439000,-500.0,0.00014766,2]
[423233406,1779965439000,-645.86663214,0.00014767,2]
[423233407,1779965439000,-500.0,0.00014767,2]
[423233409,1779965439000,-150.0,0.00014772,2]
[423233410,1779965439000,-150.0,0.00014772,2]
[423233408,1779965439000,-500.0,0.00014767,2]
[423233411,1779965439000,-150.0,0.00014778,2]
[423233412,1779965439000,-420.0,0.00014783,2]
[423233386,1779965439000,-6081.00902234,0.0001463,2]
[423233384,1779965439000,-600.0,0.000146,5]
[423233401,1779965439000,-150.0,0.00014737,2]
[423233387,1779965439000,-4728.89237176,0.0001463,2]
[423233383,1779965439000,-150.0,0.0001457,2]
[423233356,1779965439000,-166.66,0.00014247,2]
[423233357,1779965439000,-160.3,0.0001426,2]
[423233355,1779965439000,-150.0,0.00014237,2]
[423233359,1779965439000,-254.52951594,0.00014294,2]
[423233358,1779965439000,-150.0,0.00014279,2]
[423233361,1779965439000,-150.0,0.0001432,2]
[423233362,1779965439000,-1535.06015558,0.00014336,2]
[423233366,1779965439000,-5184.49839955,0.00014361,2]
[423233365,1779965439000,-10809.9013941,0.00014361,2]
[423233367,1779965439000,-150.0,0.00014362,2]
[423233368,1779965439000,-166.66,0.00014384,2]
[423233374,1779965439000,-150.0,0.00014487,2]
[423233360,1779965439000,-473.68630438,0.000143,2]
[423233373,1779965439000,-150.0,0.00014487,2]
[423233382,1779965439000,-150.0,0.00014558,2]
[423233381,1779965439000,-150.0,0.00014558,2]
[423233369,1779965439000,-150.0,0.00014387,2]
[423233380,1779965439000,-150.0,0.00014528,2]
[423233377,1779965439000,-5184.49839955,0.00014496,2]
[423233379,1779965439000,-3000.0,0.000145,5]
[423233375,1779965439000,-150.0,0.00014487,2]
[423233372,1779965439000,-150.0,0.00014451,2]
[423233370,1779965439000,-150.0,0.00014404,2]
[423233371,1779965439000,-150.0,0.00014445,2]
[423233376,1779965439000,-10809.9013941,0.00014496,2]
[423233378,1779965439000,-473.68630438,0.000145,2]
[423233442,1779965440000,-150.0,0.00014986,2]
[423233436,1779965440000,-169.0,0.00014959,2]
[423233441,1779965440000,-172.86437132,0.00014986,2]
[423233443,1779965440000,-150.0,0.00014986,2]
[423233438,1779965440000,-150.0,0.00014986,2]
[423233439,1779965440000,-203.05475875,0.00014986,2]
[423233444,1779965440000,-150.0,0.00014986,2]
[423233440,1779965440000,-247.55271106,0.00014986,2]
[423233448,1779965440000,-500.0,0.00014998,2]
[423233447,1779965440000,-500.0,0.00014998,2]
[423233446,1779965440000,-4049.3889253,0.00014995,2]
[423233454,1779965440000,-2880.411897,0.00014999,2]
[423233449,1779965440000,-500.0,0.00014998,2]
[423233453,1779965440000,-500.0,0.00014998,2]
[423233455,1779965440000,-992.6197892,0.00014999,2]
[423233434,1779965440000,-150.0,0.00014945,2]
[423233445,1779965440000,-242.2493141,0.0001499,2]
[423233432,1779965440000,-150.0,0.00014903,2]
[423233413,1779965440000,-188.39708612,0.000148,2]
[423233423,1779965440000,-1680.0,0.00014835,2]
[423233457,1779965440000,-44699.1906187,0.00014999,2]
[423233419,1779965440000,-600.0,0.000148,5]
[423233420,1779965440000,-201.9,0.00014805,2]
[423233421,1779965440000,-255.0,0.00014805,2]
[423233418,1779965440000,-245.61,0.000148,2]
[423233416,1779965440000,-1079.3267,0.000148,2]
[423233414,1779965440000,-1963.9516,0.000148,2]
[423233425,1779965440000,-150.0,0.00014879,2]
[423233422,1779965440000,-150.0,0.0001482,2]
[423233430,1779965440000,-600.0,0.000149,5]
[423233429,1779965440000,-254.52951594,0.000149,2]
[423233433,1779965440000,-150.0,0.00014925,2]
[423233427,1779965440000,-473.68630438,0.000149,2]
[423233424,1779965440000,-150.0,0.00014861,2]
[423233428,1779965440000,-10809.9013941,0.000149,2]
[423233431,1779965440000,-5184.49839955,0.000149,2]
[423233426,1779965440000,-2000.0,0.00014895,2]
[423233458,1779965440000,-500.0,0.00014999,2]
[423233489,1779965440000,-150.0,0.00015,2]
[423233452,1779965440000,-500.0,0.00014998,2]
[423233476,1779965440000,-500.0,0.00014999,2]
[423233485,1779965440000,-616.04,0.00014999,2]
[423233481,1779965440000,-500.0,0.00014999,2]
[423233477,1779965440000,-500.0,0.00014999,2]
[423233480,1779965440000,-500.0,0.00014999,2]
[423233479,1779965440000,-500.0,0.00014999,2]
[423233478,1779965440000,-500.0,0.00014999,2]
[423233484,1779965440000,-500.0,0.00014999,2]
[423233482,1779965440000,-500.0,0.00014999,2]
[423233487,1779965440000,-9409291.72967254,0.00015,2]
[423233488,1779965440000,-1729.49718832,0.00015,30]
[423233495,1779965440000,-2812.71144622,0.00015,2]
[423233494,1779965440000,-2393.94011366,0.00015,2]
[423233490,1779965440000,-1405.72280327,0.00015,2]
[423233491,1779965440000,-4413692.49162115,0.00015,2]
[423233492,1779965440000,-494.05405209,0.00013784,2]
[423233483,1779965440000,-500.0,0.00014999,2]
[423233475,1779965440000,-500.0,0.00014999,2]
[423233486,1779965440000,-377.20412361,0.00014999,2]
[423233474,1779965440000,-526.59276587,0.00014999,2]
[423233473,1779965440000,-500.0,0.00014999,2]
[423233451,1779965440000,-500.0,0.00014998,2]
[423233450,1779965440000,-174.7940029,0.00014998,2]
[423233459,1779965440000,-500.0,0.00014999,2]
[423233460,1779965440000,-500.0,0.00014999,2]
[423233463,1779965440000,-500.0,0.00014999,2]
[423233462,1779965440000,-500.0,0.00014999,2]
[423233464,1779965440000,-500.0,0.00014999,2]
[423233456,1779965440000,-55316.1714586,0.00014999,2]